[Event "Late-Titled-Tuesday-Blitz-October-17-2023"]
[Site "Chess.com"]
[Date "2023.10.17"]
[Round "6"]
[White "dadice10"]
[Black "AsaHoffmann"]
[Result "0-1"]
[WhiteElo "2212"]
[BlackElo "2344"]
[TimeControl "180+1"]
[EndTime "15:05:35 PDT"]
[Termination "AsaHoffmann won by resignation"]

1. e4 {[%clk 0:03:00.9]} 1... d6 {[%clk 0:02:55.4]} 2. d4 {[%clk 0:02:59.2]}
2... Nf6 {[%clk 0:02:55]} 3. Nc3 {[%clk 0:02:58.9]} 3... c6 {[%clk 0:02:55]} 4.
f4 {[%clk 0:02:56.3]} 4... Qa5 {[%clk 0:02:54.4]} 5. e5 {[%clk 0:02:54.8]} 5...
Nd5 {[%clk 0:02:53.3]} 6. Qf3 {[%clk 0:02:54.4]} 6... Bf5 {[%clk 0:02:50]} 7.
Bd3 {[%clk 0:02:51.1]} 7... Bxd3 {[%clk 0:02:47.2]} 8. cxd3 {[%clk 0:02:50.3]}
8... Nxc3 {[%clk 0:02:44]} 9. Bd2 {[%clk 0:02:49.7]} 9... Qd5 {[%clk 0:02:43.3]}
10. bxc3 {[%clk 0:02:47.1]} 10... Qxf3 {[%clk 0:02:42.2]} 11. Nxf3 {[%clk
0:02:47.9]} 11... e6 {[%clk 0:02:39.5]} 12. O-O {[%clk 0:02:46.4]} 12... d5
{[%clk 0:02:39.3]} 13. a4 {[%clk 0:02:35.9]} 13... b6 {[%clk 0:02:37.7]} 14. a5
{[%clk 0:02:35.1]} 14... b5 {[%clk 0:02:37.4]} 15. c4 {[%clk 0:02:28.5]} 15...
a6 {[%clk 0:02:37]} 16. cxd5 {[%clk 0:02:23.1]} 16... cxd5 {[%clk 0:02:30.3]}
17. Rac1 {[%clk 0:02:16.5]} 17... Be7 {[%clk 0:02:28.8]} 18. Rc7 {[%clk
0:02:11.7]} 18... Bd8 {[%clk 0:02:26.8]} 19. Rb7 {[%clk 0:02:10.7]} 19... Nc6
{[%clk 0:02:18.6]} 20. Rc1 {[%clk 0:02:03.7]} 20... Nxa5 {[%clk 0:02:08.8]} 21.
Bxa5 {[%clk 0:01:57.6]} 21... Bxa5 {[%clk 0:02:07.5]} 22. Ra1 {[%clk 0:01:27.7]}
22... Bd8 {[%clk 0:02:04.2]} 23. f5 {[%clk 0:01:22.7]} 23... O-O {[%clk
0:02:01]} 24. fxe6 {[%clk 0:01:20.3]} 24... fxe6 {[%clk 0:02:00.2]} 25. Rxb5
{[%clk 0:01:19.6]} 25... a5 {[%clk 0:01:41.1]} 26. Ra4 {[%clk 0:01:15.5]} 26...
h6 {[%clk 0:01:39.8]} 27. h3 {[%clk 0:01:14.2]} 27... Be7 {[%clk 0:01:39.3]} 28.
Rb7 {[%clk 0:01:07.7]} 28... Bb4 {[%clk 0:01:37.5]} 29. Rb6 {[%clk 0:01:07.3]}
29... Rfe8 {[%clk 0:01:31.9]} 30. Kf2 {[%clk 0:00:57.6]} 30... Rab8 {[%clk
0:01:30.9]} 31. Rxb8 {[%clk 0:00:55.4]} 31... Rxb8 {[%clk 0:01:30.2]} 32. Ke3
{[%clk 0:00:55.4]} 32... Rc8 {[%clk 0:01:25.5]} 33. Ra2 {[%clk 0:00:43.6]} 33...
Rc1 {[%clk 0:01:22.9]} 34. Nd2 {[%clk 0:00:42.2]} 34... Re1+ {[%clk 0:01:15.8]}
35. Kf2 {[%clk 0:00:37.3]} 35... Rd1 {[%clk 0:01:15.1]} 36. Ke2 {[%clk
0:00:27.8]} 36... Rxd2+ {[%clk 0:01:12.3]} 37. Rxd2 {[%clk 0:00:28.3]} 37...
Bxd2 {[%clk 0:01:12.2]} 38. Kxd2 {[%clk 0:00:28.9]} 38... Kf7 {[%clk 0:01:12]}
39. Kc3 {[%clk 0:00:28.4]} 39... Kg6 {[%clk 0:01:11.6]} 40. Kb3 {[%clk
0:00:28.3]} 40... Kf5 {[%clk 0:01:11.6]} 41. g3 {[%clk 0:00:25.9]} 41... h5
{[%clk 0:01:11.7]} 42. Ka4 {[%clk 0:00:19.3]} 42... h4 {[%clk 0:01:10.8]} 43.
gxh4 {[%clk 0:00:16.4]} 43... Kf4 {[%clk 0:01:10.9]} 44. Kxa5 {[%clk 0:00:15.2]}
44... Ke3 {[%clk 0:01:10.9]} 0-1

[Event "Late-Titled-Tuesday-Blitz-October-17-2023"]
[Site "Chess.com"]
[Date "2023.10.17"]
[Round "6"]
[White "stefan_95"]
[Black "Arash_Tahbaz"]
[Result "0-1"]
[WhiteElo "2724"]
[BlackElo "2907"]
[TimeControl "180+1"]
[EndTime "15:05:37 PDT"]
[Termination "Arash_Tahbaz won by checkmate"]

1. d4 {[%clk 0:03:00.9]} 1... g6 {[%clk 0:02:53.7]} 2. Nf3 {[%clk 0:03:01.1]}
2... Bg7 {[%clk 0:02:54.4]} 3. Bf4 {[%clk 0:03:01.3]} 3... d6 {[%clk 0:02:53.9]}
4. e3 {[%clk 0:03:01.5]} 4... Nf6 {[%clk 0:02:52.8]} 5. h3 {[%clk 0:03:01.6]}
5... O-O {[%clk 0:02:53.3]} 6. Be2 {[%clk 0:03:01.7]} 6... c5 {[%clk 0:02:54]}
7. O-O {[%clk 0:03:01.9]} 7... Qb6 {[%clk 0:02:54.6]} 8. c3 {[%clk 0:03:01.2]}
8... Qxb2 {[%clk 0:02:51.4]} 9. Nbd2 {[%clk 0:03:01.4]} 9... Nd5 {[%clk
0:02:48.6]} 10. Rb1 {[%clk 0:02:57]} 10... Qxc3 {[%clk 0:02:36]} 11. Nc4 {[%clk
0:02:22.6]} 11... Bf5 {[%clk 0:01:45.9]} 12. Rc1 {[%clk 0:01:44.4]} 12... Qb4
{[%clk 0:01:37.9]} 13. a3 {[%clk 0:01:44.6]} 13... Qb5 {[%clk 0:01:32.6]} 14.
Nxd6 {[%clk 0:01:44.7]} 14... Qd7 {[%clk 0:01:24.3]} 15. Nxf5 {[%clk 0:01:42.7]}
15... Nxf4 {[%clk 0:01:22.7]} 16. exf4 {[%clk 0:01:20.2]} 16... Qxf5 {[%clk
0:01:19.8]} 17. dxc5 {[%clk 0:01:15.7]} 17... Qxf4 {[%clk 0:01:18.1]} 18. Qb3
{[%clk 0:01:13.4]} 18... Qc7 {[%clk 0:01:17.2]} 19. Bc4 {[%clk 0:00:56.7]} 19...
Nd7 {[%clk 0:01:00.2]} 20. Qe3 {[%clk 0:00:55.1]} 20... e6 {[%clk 0:00:57.1]}
21. Bb5 {[%clk 0:00:52.7]} 21... Rac8 {[%clk 0:00:55.4]} 22. c6 {[%clk
0:00:47.5]} 22... Nb6 {[%clk 0:00:52]} 23. cxb7 {[%clk 0:00:46.4]} 23... Qxb7
{[%clk 0:00:52.9]} 24. Qe2 {[%clk 0:00:38.6]} 24... Qe7 {[%clk 0:00:53.1]} 25.
a4 {[%clk 0:00:37.2]} 25... Nd5 {[%clk 0:00:53.1]} 26. Ne5 {[%clk 0:00:28.2]}
26... Rxc1 {[%clk 0:00:44.7]} 27. Rxc1 {[%clk 0:00:27.7]} 27... Nf4 {[%clk
0:00:39]} 28. Qe4 {[%clk 0:00:22.1]} 28... Qg5 {[%clk 0:00:37.7]} 29. Re1 {[%clk
0:00:13.8]} 29... Bxe5 {[%clk 0:00:37.8]} 30. Qxe5 {[%clk 0:00:13.5]} 30...
Qxg2# {[%clk 0:00:37.9]} 0-1

[Event "Late-Titled-Tuesday-Blitz-October-17-2023"]
[Site "Chess.com"]
[Date "2023.10.17"]
[Round "6"]
[White "BardArtem"]
[Black "h4parah5"]
[Result "0-1"]
[WhiteElo "2760"]
[BlackElo "2937"]
[TimeControl "180+1"]
[EndTime "15:05:42 PDT"]
[Termination "h4parah5 won by resignation"]

1. e4 {[%clk 0:02:58]} 1... c5 {[%clk 0:03:00.2]} 2. c3 {[%clk 0:02:56.4]} 2...
Nf6 {[%clk 0:02:55]} 3. e5 {[%clk 0:02:56.3]} 3... Nd5 {[%clk 0:02:55.3]} 4. Nf3
{[%clk 0:02:55.8]} 4... d6 {[%clk 0:02:52.5]} 5. Bc4 {[%clk 0:02:55.4]} 5... Nb6
{[%clk 0:02:46.2]} 6. e6 {[%clk 0:02:54.4]} 6... fxe6 {[%clk 0:02:27.6]} 7. Bb3
{[%clk 0:02:54.1]} 7... c4 {[%clk 0:02:27.3]} 8. Bc2 {[%clk 0:02:54.1]} 8... Nc6
{[%clk 0:02:27.3]} 9. Qe2 {[%clk 0:02:32.9]} 9... e5 {[%clk 0:02:24.7]} 10. Na3
{[%clk 0:02:31.2]} 10... Be6 {[%clk 0:02:22.6]} 11. Ng5 {[%clk 0:02:30.5]} 11...
Bd5 {[%clk 0:02:18.7]} 12. Nxh7 {[%clk 0:02:14.1]} 12... Kd7 {[%clk 0:02:17.4]}
13. Qh5 {[%clk 0:01:46.3]} 13... e6 {[%clk 0:02:06.4]} 14. d3 {[%clk 0:01:29.5]}
14... Be7 {[%clk 0:01:56.5]} 15. dxc4 {[%clk 0:01:22.8]} 15... Nxc4 {[%clk
0:01:57.4]} 16. Nxc4 {[%clk 0:01:22.8]} 16... Bxc4 {[%clk 0:01:58.3]} 17. Bg5
{[%clk 0:01:08.9]} 17... Rxh7 {[%clk 0:01:45.5]} 18. Qxh7 {[%clk 0:01:07]} 18...
Bxg5 {[%clk 0:01:45.4]} 19. Qxg7+ {[%clk 0:01:07.4]} 19... Qe7 {[%clk
0:01:45.4]} 20. Qxe7+ {[%clk 0:01:06.8]} 20... Bxe7 {[%clk 0:01:44.2]} 21. Bb3
{[%clk 0:01:04.7]} 21... Ba6 {[%clk 0:01:40.5]} 22. O-O-O {[%clk 0:00:54]} 22...
Rf8 {[%clk 0:01:31.8]} 23. f3 {[%clk 0:00:52.7]} 23... e4 {[%clk 0:01:25.3]} 24.
Rhe1 {[%clk 0:00:42.8]} 24... Bg5+ {[%clk 0:01:04.1]} 25. Kb1 {[%clk 0:00:41.8]}
25... e3 {[%clk 0:01:04.7]} 26. Rh1 {[%clk 0:00:04.7]} 26... e2 {[%clk
0:01:02.1]} 27. Rde1 {[%clk 0:00:04.1]} 27... Bd2 {[%clk 0:00:56.8]} 28. Kc2
{[%clk 0:00:04.8]} 28... Bxe1 {[%clk 0:00:56.2]} 29. Rxe1 {[%clk 0:00:05.7]}
29... Ne5 {[%clk 0:00:54.4]} 30. Kd2 {[%clk 0:00:01.8]} 30... Rg8 {[%clk
0:00:52.6]} 31. c4 {[%clk 0:00:01.5]} 31... Rxg2 {[%clk 0:00:51.6]} 32. Rxe2
{[%clk 0:00:02.4]} 32... Nxf3+ {[%clk 0:00:50.2]} 33. Ke3 {[%clk 0:00:02.2]}
33... Rxe2+ {[%clk 0:00:50.5]} 34. Kxe2 {[%clk 0:00:03.1]} 34... Nxh2 {[%clk
0:00:50.8]} 0-1

[Event "Late-Titled-Tuesday-Blitz-October-17-2023"]
[Site "Chess.com"]
[Date "2023.10.17"]
[Round "6"]
[White "Carlitus2004"]
[Black "Thormento16"]
[Result "1-0"]
[WhiteElo "2492"]
[BlackElo "2335"]
[TimeControl "180+1"]
[EndTime "15:05:42 PDT"]
[Termination "Carlitus2004 won by resignation"]

1. e4 {[%clk 0:03:00.9]} 1... c6 {[%clk 0:02:55.9]} 2. Nf3 {[%clk 0:02:55.9]}
2... d5 {[%clk 0:02:56.8]} 3. d3 {[%clk 0:02:56.4]} 3... dxe4 {[%clk 0:02:52.8]}
4. Ng5 {[%clk 0:02:55.4]} 4... exd3 {[%clk 0:02:52.3]} 5. Bxd3 {[%clk
0:02:55.3]} 5... Nf6 {[%clk 0:02:52.3]} 6. Nxf7 {[%clk 0:02:53.3]} 6... Kxf7
{[%clk 0:02:52.1]} 7. Bg6+ {[%clk 0:02:50.5]} 7... hxg6 {[%clk 0:02:50.4]} 8.
Qxd8 {[%clk 0:02:50.4]} 8... Bf5 {[%clk 0:02:44.8]} 9. O-O {[%clk 0:02:34.1]}
9... e6 {[%clk 0:02:44]} 10. Bf4 {[%clk 0:02:25.1]} 10... Rg8 {[%clk 0:02:40.3]}
11. Bxb8 {[%clk 0:02:20.4]} 11... Be7 {[%clk 0:02:40.5]} 12. Qc7 {[%clk
0:02:10]} 12... Raxb8 {[%clk 0:02:39.7]} 13. Nc3 {[%clk 0:02:09.7]} 13... Rgc8
{[%clk 0:02:38.9]} 14. Qe5 {[%clk 0:02:05.6]} 14... Bxc2 {[%clk 0:02:38.5]} 15.
Rac1 {[%clk 0:02:03.9]} 15... Bf5 {[%clk 0:02:37.3]} 16. f3 {[%clk 0:02:04.1]}
16... Rd8 {[%clk 0:02:30.7]} 17. Rfd1 {[%clk 0:02:04.4]} 17... Nd7 {[%clk
0:02:23]} 18. Qc7 {[%clk 0:01:57.9]} 18... Nc5 {[%clk 0:02:18]} 19. Rxd8 {[%clk
0:01:49.7]} 19... Rxd8 {[%clk 0:02:18.9]} 20. Rd1 {[%clk 0:01:49.7]} 20... Bd3
{[%clk 0:01:53]} 21. Ne4 {[%clk 0:01:37.8]} 21... Rd7 {[%clk 0:01:46.2]} 22.
Qf4+ {[%clk 0:01:34.9]} 22... Kg8 {[%clk 0:01:41.1]} 23. Nf2 {[%clk 0:01:05.9]}
23... Bf6 {[%clk 0:01:28.9]} 24. b4 {[%clk 0:00:49.4]} 24... Rd4 {[%clk
0:01:24.2]} 25. Qxd4 {[%clk 0:00:36.2]} 25... Bxd4 {[%clk 0:01:23.7]} 26. bxc5
{[%clk 0:00:36.7]} 26... Bxf2+ {[%clk 0:01:23]} 27. Kxf2 {[%clk 0:00:37.6]}
27... Ba6 {[%clk 0:01:21.1]} 28. Rd7 {[%clk 0:00:25.9]} 28... Bc4 {[%clk
0:01:11.5]} 29. a3 {[%clk 0:00:17.2]} 29... b5 {[%clk 0:01:10]} 30. Rxa7 {[%clk
0:00:16.3]} 30... Bd5 {[%clk 0:01:07.5]} 31. f4 {[%clk 0:00:15.2]} 31... Kh7
{[%clk 0:01:05]} 32. g4 {[%clk 0:00:14.2]} 32... Kh6 {[%clk 0:01:05.2]} 33. h4
{[%clk 0:00:14.4]} 33... Kh7 {[%clk 0:01:05.3]} 34. Ra8 {[%clk 0:00:14.3]} 34...
Bc4 {[%clk 0:01:04.7]} 35. Ke3 {[%clk 0:00:12.7]} 35... Bd5 {[%clk 0:01:04.7]}
36. Re8 {[%clk 0:00:12.2]} 36... Bb3 {[%clk 0:01:04.1]} 37. Kd4 {[%clk
0:00:12.3]} 37... Bd5 {[%clk 0:01:04]} 38. Ke5 {[%clk 0:00:12.8]} 38... Bf3
{[%clk 0:01:01.1]} 39. Rxe6 {[%clk 0:00:07.9]} 39... Bxg4 {[%clk 0:01:00.6]} 40.
Rxc6 {[%clk 0:00:08.6]} 40... Bf3 {[%clk 0:01:00.8]} 41. Rb6 {[%clk 0:00:08.6]}
41... Be2 {[%clk 0:01:01]} 42. c6 {[%clk 0:00:09.1]} 1-0

[Event "Late-Titled-Tuesday-Blitz-October-17-2023"]
[Site "Chess.com"]
[Date "2023.10.17"]
[Round "6"]
[White "maciek_92"]
[Black "Joshukid"]
[Result "0-1"]
[WhiteElo "2817"]
[BlackElo "2567"]
[TimeControl "180+1"]
[EndTime "15:05:43 PDT"]
[Termination "Joshukid won by resignation"]

1. Nf3 {[%clk 0:03:00.9]} 1... d5 {[%clk 0:02:50.4]} 2. b3 {[%clk 0:03:01.8]}
2... Nf6 {[%clk 0:02:49.9]} 3. e3 {[%clk 0:03:02.6]} 3... g6 {[%clk 0:02:48.8]}
4. Bb2 {[%clk 0:03:03.3]} 4... Bg7 {[%clk 0:02:49.7]} 5. c4 {[%clk 0:03:03.3]}
5... c6 {[%clk 0:02:48.8]} 6. Be2 {[%clk 0:03:03.6]} 6... O-O {[%clk 0:02:49.4]}
7. O-O {[%clk 0:03:04.2]} 7... Bg4 {[%clk 0:02:49.7]} 8. Nc3 {[%clk 0:03:04.1]}
8... Nbd7 {[%clk 0:02:49.6]} 9. d4 {[%clk 0:03:04.4]} 9... e6 {[%clk 0:02:49.6]}
10. Rc1 {[%clk 0:03:05.1]} 10... Re8 {[%clk 0:02:47.8]} 11. Re1 {[%clk
0:03:04.6]} 11... Qa5 {[%clk 0:02:48.1]} 12. h3 {[%clk 0:03:04.6]} 12... Bxf3
{[%clk 0:02:48.1]} 13. Bxf3 {[%clk 0:03:05.5]} 13... dxc4 {[%clk 0:02:46.7]} 14.
bxc4 {[%clk 0:03:06.3]} 14... e5 {[%clk 0:02:47.6]} 15. Qb3 {[%clk 0:03:02.6]}
15... exd4 {[%clk 0:02:47.9]} 16. exd4 {[%clk 0:03:03.5]} 16... Qb6 {[%clk
0:02:48.6]} 17. c5 {[%clk 0:03:02.2]} 17... Qxb3 {[%clk 0:02:48.4]} 18. axb3
{[%clk 0:03:03.1]} 18... Rxe1+ {[%clk 0:02:48.7]} 19. Rxe1 {[%clk 0:03:03]}
19... Re8 {[%clk 0:02:49.6]} 20. Rd1 {[%clk 0:03:00.2]} 20... h6 {[%clk
0:02:45.6]} 21. b4 {[%clk 0:03:00.7]} 21... Nh7 {[%clk 0:02:46]} 22. b5 {[%clk
0:02:58.8]} 22... Nb8 {[%clk 0:02:44.3]} 23. Kf1 {[%clk 0:02:52.9]} 23... Ng5
{[%clk 0:02:44.6]} 24. Be2 {[%clk 0:02:44]} 24... Ne6 {[%clk 0:02:42.6]} 25. Na4
{[%clk 0:02:42.1]} 25... a6 {[%clk 0:02:35.4]} 26. bxc6 {[%clk 0:02:41.1]} 26...
bxc6 {[%clk 0:02:32.1]} 27. Bc4 {[%clk 0:02:39.2]} 27... Nd7 {[%clk 0:02:29.1]}
28. Bc3 {[%clk 0:02:10.1]} 28... Rb8 {[%clk 0:02:15.8]} 29. Re1 {[%clk 0:01:36]}
29... Ndf8 {[%clk 0:01:42.3]} 30. Re4 {[%clk 0:01:01.8]} 30... Bf6 {[%clk
0:01:36.7]} 31. Ke2 {[%clk 0:01:00.5]} 31... Kg7 {[%clk 0:01:35.8]} 32. Kd3
{[%clk 0:00:59.1]} 32... g5 {[%clk 0:01:35.9]} 33. d5 {[%clk 0:00:49.1]} 33...
Nf4+ {[%clk 0:01:29.7]} 34. Rxf4 {[%clk 0:00:45.6]} 34... gxf4 {[%clk
0:01:30.6]} 35. Bd2 {[%clk 0:00:31.5]} 35... cxd5 {[%clk 0:01:27.8]} 36. Bxd5
{[%clk 0:00:32.4]} 36... Nd7 {[%clk 0:01:13.3]} 37. c6 {[%clk 0:00:14.6]} 37...
Ne5+ {[%clk 0:01:12.8]} 38. Ke4 {[%clk 0:00:15.4]} 38... Rc8 {[%clk 0:01:03.3]}
39. Nb6 {[%clk 0:00:15.4]} 39... Re8 {[%clk 0:00:58.3]} 40. Kxf4 {[%clk
0:00:15.4]} 40... Nxc6 {[%clk 0:00:57.4]} 41. Bxc6 {[%clk 0:00:15.4]} 41... Re6
{[%clk 0:00:57.9]} 0-1

[Event "Late-Titled-Tuesday-Blitz-October-17-2023"]
[Site "Chess.com"]
[Date "2023.10.17"]
[Round "6"]
[White "Kostukov_Alex"]
[Black "MathiasWomacka"]
[Result "0-1"]
[WhiteElo "2401"]
[BlackElo "2539"]
[TimeControl "180+1"]
[EndTime "15:05:43 PDT"]
[Termination "MathiasWomacka won on time"]

1. g3 {[%clk 0:03:00.9]} 1... c5 {[%clk 0:02:59.1]} 2. Bg2 {[%clk 0:03:01]} 2...
Nc6 {[%clk 0:02:59.7]} 3. c4 {[%clk 0:03:01.6]} 3... g6 {[%clk 0:02:59.1]} 4.
Nf3 {[%clk 0:03:02]} 4... Bg7 {[%clk 0:02:59.5]} 5. O-O {[%clk 0:03:02.3]} 5...
e5 {[%clk 0:02:59.6]} 6. Nc3 {[%clk 0:03:01.5]} 6... Nge7 {[%clk 0:03:00]} 7. d3
{[%clk 0:03:01.7]} 7... d6 {[%clk 0:03:00]} 8. Bd2 {[%clk 0:03:01.7]} 8... O-O
{[%clk 0:02:58.2]} 9. Ne1 {[%clk 0:03:01.7]} 9... Be6 {[%clk 0:02:56.9]} 10. Nc2
{[%clk 0:03:02.1]} 10... d5 {[%clk 0:02:57.5]} 11. cxd5 {[%clk 0:03:02.1]} 11...
Nxd5 {[%clk 0:02:58.4]} 12. Ne3 {[%clk 0:03:01.7]} 12... Nde7 {[%clk 0:02:53.8]}
13. Qa4 {[%clk 0:02:51.3]} 13... Rc8 {[%clk 0:02:43.8]} 14. Rfc1 {[%clk
0:02:17.8]} 14... Qd7 {[%clk 0:02:29.8]} 15. Ne4 {[%clk 0:02:05.8]} 15... Nd4
{[%clk 0:02:15.1]} 16. Qxd7 {[%clk 0:01:58.1]} 16... Bxd7 {[%clk 0:02:16]} 17.
Kf1 {[%clk 0:01:56.9]} 17... b6 {[%clk 0:02:13.9]} 18. b4 {[%clk 0:01:20.7]}
18... cxb4 {[%clk 0:02:04.3]} 19. Bxb4 {[%clk 0:01:18]} 19... Rxc1+ {[%clk
0:02:02.7]} 20. Rxc1 {[%clk 0:01:16.4]} 20... Rc8 {[%clk 0:02:03.2]} 21. Rxc8+
{[%clk 0:01:13.1]} 21... Nxc8 {[%clk 0:02:04.1]} 22. Nc4 {[%clk 0:01:00.7]}
22... h6 {[%clk 0:01:52.5]} 23. e3 {[%clk 0:00:55.7]} 23... Nc6 {[%clk
0:01:48.6]} 24. Ba3 {[%clk 0:00:50.4]} 24... b5 {[%clk 0:01:38.1]} 25. Ncd6
{[%clk 0:00:45.5]} 25... Nxd6 {[%clk 0:01:37.8]} 26. Nxd6 {[%clk 0:00:45.4]}
26... a6 {[%clk 0:01:21]} 27. Nb7 {[%clk 0:00:38.2]} 27... b4 {[%clk 0:01:12]}
28. Bb2 {[%clk 0:00:28.9]} 28... Bf8 {[%clk 0:01:11.5]} 29. Bxc6 {[%clk
0:00:17.9]} 29... Bxc6 {[%clk 0:01:11.2]} 30. Nd8 {[%clk 0:00:18.5]} 30... Bb5
{[%clk 0:01:08.5]} 31. Bxe5 {[%clk 0:00:09.6]} 31... Bxd3+ {[%clk 0:01:07.9]}
32. Ke1 {[%clk 0:00:10.3]} 32... Bc4 {[%clk 0:01:08]} 33. a3 {[%clk 0:00:06.4]}
33... bxa3 {[%clk 0:01:07.4]} 34. Kd2 {[%clk 0:00:06.2]} 34... a2 {[%clk
0:00:58.7]} 35. Kc2 {[%clk 0:00:05.5]} 35... Bd5 {[%clk 0:00:54.6]} 0-1

[Event "Late-Titled-Tuesday-Blitz-October-17-2023"]
[Site "Chess.com"]
[Date "2023.10.17"]
[Round "6"]
[White "Nor1lsk"]
[Black "frederiksvane"]
[Result "1-0"]
[WhiteElo "2726"]
[BlackElo "2872"]
[TimeControl "180+1"]
[EndTime "15:05:55 PDT"]
[Termination "Nor1lsk won by checkmate"]

1. e4 {[%clk 0:03:00.9]} 1... e6 {[%clk 0:02:58.8]} 2. b3 {[%clk 0:03:00.3]}
2... d5 {[%clk 0:02:57.2]} 3. Bb2 {[%clk 0:03:00.4]} 3... dxe4 {[%clk 0:02:57]}
4. Nc3 {[%clk 0:03:00.3]} 4... Nf6 {[%clk 0:02:57.3]} 5. Qe2 {[%clk 0:03:00.7]}
5... Bd7 {[%clk 0:02:57.1]} 6. Nxe4 {[%clk 0:02:54.9]} 6... Nxe4 {[%clk
0:02:57.9]} 7. Qxe4 {[%clk 0:02:55]} 7... Bc6 {[%clk 0:02:58.6]} 8. Qg4 {[%clk
0:02:50.6]} 8... Nd7 {[%clk 0:02:58.9]} 9. O-O-O {[%clk 0:02:49.6]} 9... a5
{[%clk 0:02:55.6]} 10. Nf3 {[%clk 0:02:41.6]} 10... Nf6 {[%clk 0:02:55.9]} 11.
Qg3 {[%clk 0:02:32.6]} 11... Ne4 {[%clk 0:02:43.1]} 12. Qf4 {[%clk 0:02:31.5]}
12... Bd6 {[%clk 0:01:53.6]} 13. Ne5 {[%clk 0:01:29.1]} 13... O-O {[%clk
0:01:30.4]} 14. Bd3 {[%clk 0:01:17.3]} 14... Nc5 {[%clk 0:01:29.8]} 15. Be2
{[%clk 0:01:10.2]} 15... Bd5 {[%clk 0:01:23.1]} 16. d4 {[%clk 0:01:04.2]} 16...
Ne4 {[%clk 0:01:19]} 17. c4 {[%clk 0:00:53.5]} 17... Bc6 {[%clk 0:01:18.1]} 18.
d5 {[%clk 0:00:41.5]} 18... exd5 {[%clk 0:01:05.9]} 19. cxd5 {[%clk 0:00:41.5]}
19... Nxf2 {[%clk 0:00:56.7]} 20. Qxf2 {[%clk 0:00:31.5]} 20... Qg5+ {[%clk
0:00:57]} 21. Kb1 {[%clk 0:00:31.3]} 21... Bxe5 {[%clk 0:00:55.5]} 22. dxc6
{[%clk 0:00:21.9]} 22... Bxb2 {[%clk 0:00:55.5]} 23. Kxb2 {[%clk 0:00:22.8]}
23... bxc6 {[%clk 0:00:55.8]} 24. Bc4 {[%clk 0:00:21.4]} 24... a4 {[%clk
0:00:55.2]} 25. Rhf1 {[%clk 0:00:20.5]} 25... axb3 {[%clk 0:00:55.1]} 26. Bxb3
{[%clk 0:00:19.1]} 26... Qe5+ {[%clk 0:00:50.9]} 27. Qd4 {[%clk 0:00:17.4]}
27... Qxh2 {[%clk 0:00:49.9]} 28. Rxf7 {[%clk 0:00:14]} 28... Qh3 {[%clk
0:00:20.7]} 29. Qxg7# {[%clk 0:00:10.6]} 1-0

[Event "Late-Titled-Tuesday-Blitz-October-17-2023"]
[Site "Chess.com"]
[Date "2023.10.17"]
[Round "6"]
[White "K_A_S_T_O_R"]
[Black "Dacean99"]
[Result "1-0"]
[WhiteElo "2871"]
[BlackElo "2637"]
[TimeControl "180+1"]
[EndTime "15:05:55 PDT"]
[Termination "K_A_S_T_O_R won by resignation"]

1. e4 {[%clk 0:03:00.9]} 1... d6 {[%clk 0:02:59.2]} 2. d4 {[%clk 0:03:00.4]}
2... Nf6 {[%clk 0:02:59.8]} 3. Nc3 {[%clk 0:03:00.3]} 3... g6 {[%clk 0:03:00.3]}
4. h3 {[%clk 0:02:56]} 4... a6 {[%clk 0:03:00.4]} 5. a4 {[%clk 0:02:51.7]} 5...
Bg7 {[%clk 0:02:58.2]} 6. Nf3 {[%clk 0:02:50.7]} 6... O-O {[%clk 0:02:57.9]} 7.
Be3 {[%clk 0:02:48.3]} 7... Nc6 {[%clk 0:02:58.4]} 8. a5 {[%clk 0:02:44.5]} 8...
Nb4 {[%clk 0:02:58.8]} 9. Be2 {[%clk 0:02:39.9]} 9... d5 {[%clk 0:02:53]} 10. e5
{[%clk 0:02:38.9]} 10... Ne4 {[%clk 0:02:41.7]} 11. Nxe4 {[%clk 0:02:18.4]}
11... dxe4 {[%clk 0:02:42.6]} 12. Ng5 {[%clk 0:02:18.7]} 12... c5 {[%clk
0:02:35.4]} 13. c3 {[%clk 0:01:55.2]} 13... cxd4 {[%clk 0:02:34.7]} 14. Bxd4
{[%clk 0:01:52.1]} 14... Nc6 {[%clk 0:02:34.2]} 15. Nxe4 {[%clk 0:01:49.7]}
15... Nxe5 {[%clk 0:02:33.7]} 16. f4 {[%clk 0:01:40]} 16... Nc6 {[%clk 0:02:33]}
17. Bxg7 {[%clk 0:01:39.1]} 17... Kxg7 {[%clk 0:02:33.9]} 18. Qxd8 {[%clk
0:01:33.9]} 18... Rxd8 {[%clk 0:02:34.8]} 19. Nc5 {[%clk 0:01:31]} 19... e5
{[%clk 0:02:31.5]} 20. fxe5 {[%clk 0:01:29.4]} 20... Nxe5 {[%clk 0:02:32.4]} 21.
b4 {[%clk 0:01:23.7]} 21... Re8 {[%clk 0:02:10.6]} 22. Kf2 {[%clk 0:01:19.7]}
22... Re7 {[%clk 0:02:03.2]} 23. Rad1 {[%clk 0:01:17.8]} 23... Bf5 {[%clk
0:02:02.8]} 24. Rhe1 {[%clk 0:01:16.2]} 24... Rae8 {[%clk 0:02:01.5]} 25. g4
{[%clk 0:01:11.2]} 25... Bc8 {[%clk 0:01:58.6]} 26. Bf1 {[%clk 0:01:09.5]} 26...
h5 {[%clk 0:01:56.4]} 27. gxh5 {[%clk 0:01:09.1]} 27... gxh5 {[%clk 0:01:57.3]}
28. Bg2 {[%clk 0:01:03]} 28... h4 {[%clk 0:01:54.9]} 29. Re4 {[%clk 0:00:58.8]}
29... Ng6 {[%clk 0:01:50]} 30. Rxe7 {[%clk 0:00:57.9]} 30... Rxe7 {[%clk
0:01:50.9]} 31. Rd8 {[%clk 0:00:57.4]} 31... Rc7 {[%clk 0:01:49.4]} 32. Ke3
{[%clk 0:00:50.1]} 32... Re7+ {[%clk 0:01:39.6]} 33. Kd4 {[%clk 0:00:44.2]}
33... Nf4 {[%clk 0:01:35.8]} 34. Rxc8 {[%clk 0:00:38.7]} 34... Nxg2 {[%clk
0:01:35.1]} 35. Rb8 {[%clk 0:00:36.5]} 35... Nf4 {[%clk 0:01:34.5]} 36. Rxb7
{[%clk 0:00:35.8]} 36... Rxb7 {[%clk 0:01:25.8]} 37. Nxb7 {[%clk 0:00:35.8]}
37... Nxh3 {[%clk 0:01:26.6]} 38. b5 {[%clk 0:00:35.9]} 38... Ng5 {[%clk
0:01:18.5]} 39. bxa6 {[%clk 0:00:35.1]} 39... h3 {[%clk 0:01:19]} 40. Nd6 {[%clk
0:00:31.6]} 40... h2 {[%clk 0:01:15.1]} 41. Nf5+ {[%clk 0:00:31.1]} 41... Kf6
{[%clk 0:01:15.4]} 42. Ng3 {[%clk 0:00:32]} 42... Ne6+ {[%clk 0:01:15.1]} 43.
Kc4 {[%clk 0:00:32]} 43... Ke5 {[%clk 0:01:11.9]} 44. a7 {[%clk 0:00:31.8]}
44... Nc7 {[%clk 0:01:12.3]} 45. Kc5 {[%clk 0:00:32.1]} 45... Kf4 {[%clk
0:01:11.6]} 46. Nh1 {[%clk 0:00:29.4]} 46... Kf3 {[%clk 0:01:10.9]} 47. Kc6
{[%clk 0:00:29.7]} 47... Na8 {[%clk 0:01:02.5]} 48. Kb7 {[%clk 0:00:29.7]} 48...
Kg2 {[%clk 0:01:03.2]} 49. Kxa8 {[%clk 0:00:29.3]} 49... Kxh1 {[%clk 0:01:03.7]}
50. Kb8 {[%clk 0:00:29.7]} 50... Kg1 {[%clk 0:01:03.5]} 51. a8=Q {[%clk
0:00:30.1]} 51... h1=Q {[%clk 0:01:03.8]} 52. Qxh1+ {[%clk 0:00:30]} 52... Kxh1
{[%clk 0:01:03.8]} 53. a6 {[%clk 0:00:30.6]} 53... f5 {[%clk 0:01:04.3]} 54. a7
{[%clk 0:00:31.2]} 54... f4 {[%clk 0:01:05.2]} 55. a8=Q+ {[%clk 0:00:31.8]}
55... f3 {[%clk 0:01:06.1]} 56. Qxf3+ {[%clk 0:00:32.2]} 1-0